bitfinex/quotes_BTCUSD_20250628
["timestamp","ask_amount","ask_price","bid_price","bid_amount"]
[1751127716922,1.16186361,107390.0,107380.0,0.06643755]
[1751127717148,1.89074899,107390.0,107380.0,0.06643755]
[1751127719348,1.86849798,107390.0,107380.0,0.06643755]
[1751127723614,1.86841798,107390.0,107380.0,0.06643755]
[1751127727564,1.86186942,107390.0,107380.0,0.06643755]
[1751127733968,1.34498673,107390.0,107380.0,0.06643755]
[1751127734191,1.49742673,107390.0,107380.0,0.06643755]
[1751127735959,1.49742673,107390.0,107380.0,0.06876573]
[1751127737547,1.86186942,107390.0,107380.0,0.06876573]
[1751127738487,1.13298404,107390.0,107380.0,0.06876573]
[1751127738708,1.49742673,107390.0,107380.0,0.06876573]
[1751127739134,1.34498673,107390.0,107380.0,0.06876573]
[1751127739351,1.49738673,107390.0,107380.0,0.06876573]
[1751127741632,1.13294404,107390.0,107380.0,0.06876573]
[1751127741865,1.49738673,107390.0,107380.0,0.06876573]
[1751127742312,1.13294404,107390.0,107380.0,0.06876573]
[1751127742532,1.49738673,107390.0,107380.0,0.06876573]
[1751127743432,1.30534673,107390.0,107380.0,0.06876573]
[1751127743651,1.49738673,107390.0,107380.0,0.26433287]
[1751127743862,1.48807531,107390.0,107380.0,0.06643755]
[1751127744090,1.48807531,107390.0,107380.0,0.06876573]
[1751127749488,1.48807531,107390.0,107380.0,0.06643755]
[1751127751419,1.852518,107390.0,107380.0,0.06643755]
[1751127752073,1.852518,107390.0,107380.0,0.03603755]
[1751127753408,1.852518,107390.0,107380.0,0.00313755]
[1751127758023,1.968018,107390.0,107380.0,0.00313755]
[1751127758456,1.97455899,107390.0,107380.0,0.00313755]
[1751127758667,1.99688739,107390.0,107380.0,0.00313755]
[1751127763810,2.36133008,107390.0,107380.0,0.00313755]
[1751127764029,1.99688739,107390.0,107380.0,0.00313755]
[1751127775227,1.93138739,107390.0,107380.0,0.00313755]
[1751127776402,1.96148739,107390.0,107380.0,0.00313755]
[1751127780027,1.93138739,107390.0,107380.0,0.00313755]
[1751127816092,1.96132542,107390.0,107380.0,0.00313755]
[1751127816293,1.93138739,107390.0,107380.0,0.00313755]
[1751127818439,1.23036099,107390.0,107380.0,0.00313755]
[1751127818809,1.95924637,107390.0,107380.0,0.00313755]
[1751127829729,1.95924637,107390.0,107380.0,0.03453755]
[1751127835704,1.95924637,107390.0,107380.0,0.06733755]
[1751127841938,1.95924637,107390.0,107380.0,0.06639001]
[1751127849370,1.76720637,107390.0,107380.0,0.06639001]
[1751127849543,1.95872637,107390.0,107380.0,0.06639001]
[1751127850036,2.05148645,107390.0,107380.0,0.06639001]
[1751127853515,7.10148645,107390.0,107380.0,0.06639001]
[1751127853971,7.10148645,107390.0,107380.0,0.03359001]
[1751127854602,7.46592914,107390.0,107380.0,0.03359001]
[1751127855280,7.46592914,107390.0,107380.0,0.00219001]
[1751127856336,2.41592914,107390.0,107380.0,0.00219001]
[1751127856556,7.46592914,107390.0,107380.0,0.00219001]
[1751127861082,7.37316906,107390.0,107380.0,0.00219001]
[1751127861311,7.37316906,107390.0,107380.0,0.03369001]
[1751127861688,7.37316906,107390.0,107380.0,0.00219001]
[1751127865958,2.32316906,107390.0,107380.0,0.00219001]
[1751127866156,7.37316906,107390.0,107380.0,0.00219001]
[1751127867143,7.46592914,107390.0,107380.0,0.00219001]
[1751127871296,2.41592914,107390.0,107380.0,0.00219001]
[1751127871517,7.46592914,107390.0,107380.0,0.00219001]
[1751127872515,2.41592914,107390.0,107380.0,0.00219001]
[1751127872728,7.46592914,107390.0,107380.0,0.00219001]
[1751127874053,7.37316906,107390.0,107380.0,0.00219001]
[1751127881222,7.37316906,107390.0,107380.0,0.03349001]
[1751127882020,7.37316906,107390.0,107380.0,0.06539001]
[1751127883529,7.37317683,107390.0,107380.0,0.06539001]
[1751127885296,7.37317683,107390.0,107380.0,0.03349001]
[1751127886252,7.46593691,107390.0,107380.0,0.06379001]
[1751127887261,7.46593691,107390.0,107380.0,0.03349001]
[1751127888771,7.46593691,107390.0,107380.0,0.06379001]
[1751127889027,6.27984876,107390.0,107380.0,0.06379001]
[1751127889243,7.00873414,107390.0,107380.0,0.06379001]
[1751127891338,1.95873414,107390.0,107380.0,0.06379001]
[1751127891556,7.00873414,107390.0,107380.0,0.06379001]
[1751127892951,7.37317683,107390.0,107380.0,0.06379001]
[1751127894344,2.32317683,107390.0,107380.0,0.06379001]
[1751127894596,7.37317683,107390.0,107380.0,0.06379001]
[1751127894801,7.00873414,107390.0,107380.0,0.06379001]
[1751127895520,1.95873414,107390.0,107380.0,0.06379001]
[1751127895723,7.00873414,107390.0,107380.0,0.06379001]
[1751127898942,7.0085434,107390.0,107380.0,0.06379001]
[1751127901141,7.37298609,107390.0,107380.0,0.06379001]
[1751127904751,7.0085434,107390.0,107380.0,0.06379001]
[1751127907020,7.37298609,107390.0,107380.0,0.06379001]
[1751127907896,6.8170234,107390.0,107380.0,0.06379001]
[1751127908129,7.0081834,107390.0,107380.0,0.06379001]
[1751127910972,1.9581834,107390.0,107380.0,0.06379001]
[1751127911191,6.8563434,107390.0,107380.0,0.06379001]
[1751127911408,7.0081834,107390.0,107380.0,0.06379001]
[1751127912849,7.37262609,107390.0,107380.0,0.06379001]
[1751127916314,2.32262609,107390.0,107380.0,0.06379001]
[1751127916554,7.37262609,107390.0,107380.0,0.06379001]
[1751127924245,7.37262609,107390.0,107380.0,0.06293282]
[1751127927974,7.40984737,107390.0,107380.0,0.06293282]
[1751127929431,7.40984737,107390.0,107380.0,0.00133282]
[1751127930044,7.50260745,107390.0,107380.0,0.00133282]
[1751127931665,7.46538617,107390.0,107380.0,0.00133282]
[1751127934077,7.50260745,107390.0,107380.0,0.00133282]
[1751127934286,7.40984737,107390.0,107380.0,0.00133282]
[1751127938353,7.37262609,107390.0,107380.0,0.00133282]
[1751127940515,7.40984737,107390.0,107380.0,0.00133282]
[1751127945850,7.40984737,107390.0,107380.0,0.00080249]
[1751127946048,7.40984737,107390.0,107380.0,7.287e-05]
[1751127946217,7.50260745,107390.0,107380.0,7.287e-05]
[1751127948369,7.40984737,107390.0,107380.0,7.287e-05]
[1751127948953,7.40984737,107390.0,107380.0,0.06447287]
[1751127951992,2.35984737,107390.0,107380.0,0.06447287]
[1751127952190,7.40984737,107390.0,107380.0,0.06447287]
[1751127952591,7.40984737,107390.0,107380.0,0.03127287]
[1751127952803,7.50260745,107390.0,107380.0,0.03127287]
[1751127955547,7.50260745,107390.0,107380.0,7.287e-05]
[1751127956179,7.50260745,107390.0,107380.0,0.03007287]
[1751127957702,7.49605869,107390.0,107380.0,0.03007287]
[1751127959484,7.50260552,107390.0,107380.0,0.03007287]
[1751127960813,5.65010781,107380.0,107370.0,0.02773522]
[1751127961044,0.60012603,107370.0,107360.0,0.1]
[1751127961241,6.69152672,107370.0,107360.0,0.10008544]
[1751127961470,6.71949872,107370.0,107360.0,0.10008544]
[1751127963888,6.71949872,107370.0,107360.0,0.13298544]
[1751127964313,7.08394141,107370.0,107360.0,0.13298544]
[1751127967098,7.08394141,107370.0,107360.0,0.10008544]
[1751127967345,7.11654141,107370.0,107360.0,0.10008544]
[1751127967809,0.21016247,107350.0,107340.0,0.1322]
[1751127968038,6.66806788,107350.0,107340.0,0.13265886]
[1751127968469,6.69604488,107350.0,107340.0,0.13265886]
[1751127968696,7.15324765,107350.0,107340.0,0.10045886]
[1751127969000,7.18100715,107350.0,107340.0,0.10045886]
[1751127969226,7.12184707,107350.0,107340.0,0.10045886]
[1751127969436,7.14417752,107350.0,107340.0,0.10045886]
[1751127969659,7.12184707,107350.0,107340.0,0.10045886]
[1751127969877,7.15264707,107350.0,107340.0,0.10045886]
[1751127970314,7.14272707,107350.0,107340.0,0.10045886]
[1751127970532,7.19639766,107350.0,107340.0,0.10145886]
[1751127970992,7.17335613,107350.0,107340.0,0.10245886]
[1751127971210,2.12335613,107350.0,107340.0,0.10245886]
[1751127971434,6.52699394,107350.0,107340.0,0.16485886]
[1751127971647,6.71775394,107350.0,107340.0,0.16485886]
[1751127972076,6.71775394,107350.0,107340.0,0.10245886]
[1751127972077,7.08219663,107350.0,107340.0,0.10245886]
[1751127972298,7.24015671,107350.0,107340.0,0.10245886]
[1751127973434,7.24015671,107350.0,107340.0,0.00245886]
[1751127973647,0.65119599,107330.0,107320.0,0.1624]
[1751127973870,1.66360145,107330.0,107320.0,0.16244585]
[1751127974118,1.61156031,107330.0,107320.0,0.13194585]
[1751127974340,7.1479161,107330.0,107320.0,0.10004585]
[1751127974792,7.1759011,107330.0,107320.0,0.10004585]
[1751127975058,6.68954531,107330.0,107320.0,0.10004585]
[1751127975308,6.71910034,107330.0,107320.0,0.10004585]
[1751127975526,6.74585984,107330.0,107320.0,0.10004585]
[1751127975960,6.74685984,107330.0,107320.0,0.10004585]
[1751127976194,6.74685984,107330.0,107320.0,0.16344585]
[1751127976421,6.74585984,107330.0,107320.0,0.16344585]
[1751127976846,6.71810034,107330.0,107320.0,0.16344585]
[1751127977268,6.71810034,107330.0,107320.0,0.10004585]
[1751127977911,6.71810034,107330.0,107320.0,0.16344585]
[1751127978983,6.71814034,107330.0,107320.0,0.16344585]
[1751127979194,6.52734034,107330.0,107320.0,0.16344585]
[1751127979395,6.71814034,107330.0,107320.0,0.16344585]
[1751127979814,5.98925496,107330.0,107320.0,0.16344585]
[1751127980022,6.71814034,107330.0,107320.0,0.16344585]
[1751127980239,5.98925496,107330.0,107320.0,0.16344585]
[1751127980459,6.71814034,107330.0,107320.0,0.16344585]
[1751127980665,6.37833733,107330.0,107320.0,0.16344585]
[1751127981082,5.73495818,107330.0,107320.0,0.16344585]
[1751127981292,6.31484055,107330.0,107320.0,0.16344585]
[1751127981940,6.3293814,107330.0,107320.0,0.16344585]
[1751127982369,6.33869819,107330.0,107320.0,0.16344585]
[1751127982590,6.18705819,107330.0,107320.0,0.16344585]
[1751127982780,6.33869819,107330.0,107320.0,0.16344585]
[1751127984416,0.89961582,107330.0,107320.0,0.16344585]
[1751127984633,6.33869819,107330.0,107320.0,0.16344585]
[1751127990843,5.94961582,107330.0,107320.0,0.16344585]
[1751127991061,6.33869819,107330.0,107320.0,0.16344585]
[1751127991531,6.33869819,107330.0,107320.0,0.18084042]
[1751127995132,6.34522927,107330.0,107320.0,0.18084042]
[1751127997610,1.29522927,107330.0,107320.0,0.18084042]
[1751128002613,1.27085622,107330.0,107320.0,0.18084042]
[1751128006750,0.9060269,107330.0,107320.0,0.18084042]
[1751128006988,1.27073622,107330.0,107320.0,0.18084042]
[1751128008010,1.26420514,107330.0,107320.0,0.18084042]
[1751128011029,1.11264514,107330.0,107320.0,0.36719897]
[1751128011256,1.26416514,107330.0,107320.0,0.38583456]
[1751128011470,1.26416514,107330.0,107320.0,0.37651689]
[1751128011692,1.26416514,107330.0,107320.0,0.38583473]
[1751128012138,1.26516514,107330.0,107320.0,0.39515248]
[1751128012586,0.71411428,107330.0,107320.0,0.40447006]
[1751128012825,0.72343125,107330.0,107320.0,0.41378755]
[1751128013728,0.72343125,107330.0,107320.0,0.39515248]
[1751128013975,0.90977244,107330.0,107320.0,0.39515248]
[1751128014198,0.90977244,107330.0,107320.0,0.38583473]
[1751128014671,0.91077244,107330.0,107320.0,0.39515248]
[1751128015269,0.91077244,107330.0,107320.0,0.40447014]
[1751128015928,0.88221741,107330.0,107320.0,0.40447014]
[1751128020221,0.88221741,107330.0,107320.0,0.39515248]
[1751128020436,0.88221741,107330.0,107320.0,0.40447014]
[1751128021269,0.88221741,107330.0,107320.0,0.39515248]
[1751128021506,0.88221741,107330.0,107320.0,0.37651689]
[1751128021708,0.88221741,107330.0,107320.0,0.38583473]
[1751128022171,0.88221741,107330.0,107320.0,0.39515248]
[1751128022598,0.66789122,107330.0,107320.0,0.40446997]
[1751128022805,0.65853373,107330.0,107320.0,0.77849608]
[1751128022993,0.4977372,107330.0,107320.0,0.77849608]
[1751128023245,0.65853365,107330.0,107320.0,0.77849608]
[1751128023887,0.46693365,107330.0,107320.0,0.77161608]
[1751128024104,0.65753365,107330.0,107320.0,0.77161608]
[1751128024312,0.65753365,107330.0,107320.0,0.77261608]
[1751128024552,0.65653365,107330.0,107320.0,0.77261608]
[1751128025867,0.66585027,107330.0,107320.0,0.77261608]
[1751128026136,0.66585027,107330.0,107320.0,0.75522151]
[1751128026340,0.65653365,107330.0,107320.0,0.75522151]
[1751128026978,0.66585027,107330.0,107320.0,0.75522151]
[1751128027331,0.65653365,107330.0,107320.0,0.75522151]
[1751128028804,0.66585018,107330.0,107320.0,0.75522151]
[1751128030852,0.65653365,107330.0,107320.0,0.75522151]
[1751128031676,0.63790093,107330.0,107320.0,0.75522151]
[1751128031884,0.64721729,107330.0,107320.0,0.75522151]
[1751128032937,0.64721729,107330.0,107320.0,0.39051219]
[1751128033137,0.64721729,107330.0,107320.0,0.75522151]
[1751128033785,0.63790093,107330.0,107320.0,0.75522151]
[1751128034644,0.28336008,107330.0,107320.0,0.75522151]
[1751128034883,0.13188008,107330.0,107320.0,0.75522151]
[1751128036594,0.09276008,107330.0,107320.0,1.11993083]
[1751128036807,0.09276008,107330.0,107320.0,0.75522151]
[1751128037024,0.09276008,107330.0,107320.0,1.1209749]
[1751128037921,0.09276008,107330.0,107320.0,1.1219749]
[1751128038144,0.09276008,107330.0,107320.0,1.1209749]
[1751128038865,0.09276008,107330.0,107320.0,1.1229749]
[1751128043749,0.26264,107340.0,107330.0,0.27859132]
[1751128043957,0.35540008,107340.0,107330.0,0.79470064]
[1751128044162,0.13180008,107340.0,107330.0,0.79470064]
[1751128046684,0.13180008,107340.0,107330.0,0.79570064]
[1751128047166,0.13180008,107340.0,107330.0,0.79770064]
[1751128047400,0.14634093,107340.0,107330.0,0.79770064]
[1751128049203,0.10730093,107340.0,107330.0,0.79770064]
[1751128049425,0.09276008,107340.0,107330.0,0.79874471]
[1751128050064,0.87394,107350.0,107340.0,0.27737135]
[1751128050269,0.98124093,107350.0,107340.0,0.64208067]
[1751128059958,0.99055547,107350.0,107340.0,0.64208067]
[1751128060199,0.98124093,107350.0,107340.0,0.64208067]
[1751128060426,0.99055547,107350.0,107340.0,0.64208067]
[1751128060634,0.99055547,107350.0,107340.0,0.27737135]
[1751128060844,0.99987009,107350.0,107340.0,0.64208067]
[1751128061677,0.99055547,107350.0,107340.0,0.64208067]
[1751128063622,0.99987018,107350.0,107340.0,0.64208067]
[1751128063834,0.99055547,107350.0,107340.0,0.64208067]
[1751128064017,0.99987009,107350.0,107340.0,0.64208067]
[1751128064691,0.99055547,107350.0,107340.0,0.64208067]
[1751128065136,0.99987018,107350.0,107340.0,0.64208067]
[1751128065351,0.99055547,107350.0,107340.0,0.64208067]
[1751128066340,0.99987009,107350.0,107340.0,0.64208067]
[1751128067003,0.99055547,107350.0,107340.0,0.64208067]
[1751128068043,0.99055547,107350.0,107340.0,0.61058067]
[1751128068759,0.99987018,107350.0,107340.0,0.61058067]
[1751128068978,0.99055547,107350.0,107340.0,0.61058067]
[1751128070363,0.99987018,107350.0,107340.0,0.61058067]
[1751128070584,1.00918515,107350.0,107340.0,0.57898067]
[1751128071007,1.00918506,107350.0,107340.0,0.57898067]
[1751128071789,0.99987018,107350.0,107340.0,0.57898067]
[1751128071994,1.00918506,107350.0,107340.0,0.57898067]
[1751128072652,0.99987018,107350.0,107340.0,0.57898067]
[1751128072885,1.00918506,107350.0,107340.0,0.57898067]
[1751128074245,0.99987018,107350.0,107340.0,0.57898067]
[1751128074468,1.00918506,107350.0,107340.0,0.57898067]
[1751128075043,1.00918498,107350.0,107340.0,0.57898067]
[1751128077533,1.00918498,107350.0,107340.0,0.21427135]
[1751128077734,1.01849986,107350.0,107340.0,0.57898067]
[1751128079558,1.00918498,107350.0,107340.0,0.57898067]
[1751128080651,0.99987018,107350.0,107340.0,0.57898067]
[1751128081013,1.00918506,107350.0,107340.0,0.57898067]
[1751128081969,1.00918506,107350.0,107340.0,0.21427135]
[1751128082169,1.00918506,107350.0,107340.0,0.57898076]
[1751128082349,1.00918506,107350.0,107340.0,0.22358702]
[1751128083380,0.99987018,107350.0,107340.0,0.22358702]
[1751128083820,1.00918506,107350.0,107340.0,0.22358702]
[1751128084395,1.00922506,107350.0,107340.0,0.22358702]
[1751128085052,0.99991018,107350.0,107340.0,0.22358702]
[1751128085197,1.00922506,107350.0,107340.0,0.22358702]
[1751128085431,1.00922506,107350.0,107340.0,0.58829634]
[1751128085844,1.00922498,107350.0,107340.0,0.58829634]
[1751128089940,1.00922498,107350.0,107340.0,0.22358702]
[1751128094726,0.99991018,107350.0,107340.0,0.22358702]
[1751128095999,0.99059547,107350.0,107340.0,0.22358702]
[1751128096223,0.99991018,107350.0,107340.0,0.22358702]
[1751128096454,0.99991018,107350.0,107340.0,0.58829634]
[1751128096704,0.99991009,107350.0,107340.0,0.58829634]
[1751128097865,0.98128093,107350.0,107340.0,0.60869634]
[1751128098072,0.99059547,107350.0,107340.0,0.63049634]
[1751128098517,0.98128093,107350.0,107340.0,0.63049634]
[1751128099909,0.98128093,107350.0,107340.0,0.60869634]
[1751128102393,0.98128093,107350.0,107340.0,0.62899634]
[1751128103346,0.98128093,107350.0,107340.0,0.63004041]
[1751128103347,0.96674008,107350.0,107340.0,0.63004041]
[1751128105074,0.96674008,107350.0,107340.0,0.26533109]
[1751128105287,0.96674008,107350.0,107340.0,0.60974041]
[1751128107016,0.96674008,107350.0,107340.0,0.63104041]
[1751128108070,0.96674008,107350.0,107340.0,0.63204041]
[1751128108276,0.96674008,107350.0,107340.0,0.63404041]
[1751128111090,0.92770008,107350.0,107340.0,0.63404041]
[1751128111297,0.96662008,107350.0,107340.0,0.63404041]
[1751128118766,0.62662008,107350.0,107340.0,0.63404041]
[1751128120399,0.58770008,107350.0,107340.0,0.63404041]
[1751128120608,0.58770008,107350.0,107340.0,0.99874973]
[1751128123205,0.49494,107350.0,107340.0,0.99874973]
[1751128124327,4e-05,107350.0,107340.0,1.09481973]
[1751128124548,4e-05,107350.0,107340.0,0.99674973]
[1751128124741,4e-05,107350.0,107340.0,0.99874973]
[1751128125239,4e-05,107350.0,107340.0,1.00074973]
[1751128127914,4e-05,107350.0,107340.0,0.27133109]
[1751128128139,4e-05,107350.0,107340.0,1.00074973]
[1751128131045,4e-05,107350.0,107340.0,1.15182973]
[1751128131887,4e-05,107350.0,107340.0,1.00074973]
[1751128132075,4e-05,107350.0,107340.0,1.15178973]
[1751128134842,4e-05,107350.0,107340.0,1.00074973]
[1751128135020,4e-05,107350.0,107340.0,1.15178973]
[1751128141057,4e-05,107350.0,107340.0,0.42237109]
[1751128141274,4e-05,107350.0,107340.0,1.15178973]
[1751128142761,4e-05,107350.0,107340.0,0.42237109]
[1751128143027,4e-05,107350.0,107340.0,1.15178973]
[1751128143249,4e-05,107350.0,107340.0,0.99970566]
[1751128143487,4e-05,107350.0,107340.0,1.11008973]
[1751128143726,4e-05,107350.0,107340.0,0.74538041]
[1751128144423,4e-05,107350.0,107340.0,1.11008973]
[1751128152581,4e-05,107350.0,107340.0,0.95904973]
[1751128152788,4e-05,107350.0,107340.0,1.11004973]
[1751128155339,4e-05,107350.0,107340.0,1.10872973]
[1751128156286,4e-05,107350.0,107340.0,1.13042973]
[1751128160466,4e-05,107350.0,107340.0,0.40101109]
[1751128160668,4e-05,107350.0,107340.0,0.76572041]
[1751128161840,4e-05,107350.0,107340.0,0.78612041]
[1751128164017,4e-05,107350.0,107340.0,0.42141109]
[1751128164218,4e-05,107350.0,107340.0,0.78612041]
[1751128165527,4e-05,107350.0,107340.0,1.15082973]
[1751128174836,4e-05,107350.0,107340.0,1.13042973]
[1751128178108,4e-05,107350.0,107340.0,1.14992973]
[1751128180114,4e-05,107350.0,107340.0,0.42051109]
[1751128180329,4e-05,107350.0,107340.0,1.14992973]
[1751128182555,4e-05,107350.0,107340.0,1.13042973]
[1751128184465,4e-05,107350.0,107340.0,1.10872973]
[1751128189832,4e-05,107350.0,107340.0,1.14782973]
[1751128191541,4e-05,107350.0,107340.0,1.10872973]
[1751128191950,4e-05,107350.0,107340.0,0.37931109]
[1751128192158,4e-05,107350.0,107340.0,1.10872973]
[1751128195087,4e-05,107350.0,107340.0,0.37931109]
[1751128195294,4e-05,107350.0,107340.0,1.10872973]
[1751128197081,4e-05,107350.0,107340.0,1.12882973]
[1751128205411,4e-05,107350.0,107340.0,1.10872973]
[1751128205627,4e-05,107350.0,107340.0,1.14842973]
[1751128206270,4e-05,107350.0,107340.0,1.51313905]
[1751128207274,4e-05,107350.0,107340.0,1.14842973]
[1751128209146,4e-05,107350.0,107340.0,1.51313905]
[1751128209354,4e-05,107350.0,107340.0,1.14842973]
[1751128209761,4e-05,107350.0,107340.0,1.51313905]
[1751128209982,4e-05,107350.0,107340.0,1.14842973]
[1751128211843,4e-05,107350.0,107340.0,1.51313905]
[1751128213592,4e-05,107350.0,107340.0,1.60589913]
[1751128214054,0.66918386,107370.0,107360.0,0.94365006]
[1751128214264,0.66918386,107370.0,107360.0,1.09445006]
[1751128214875,0.66918386,107370.0,107360.0,1.09549413]
[1751128215286,0.66964156,107370.0,107360.0,1.09549413]
[1751128215481,0.66964156,107370.0,107360.0,1.09849413]
[1751128216340,0.66964156,107370.0,107360.0,1.10049413]
[1751128217381,0.5953577,107370.0,107360.0,1.10049413]
[1751128218418,0.5953577,107370.0,107360.0,1.13979413]
[1751128219940,0.1004577,107370.0,107360.0,1.50450345]
[1751128221005,0.1004577,107370.0,107360.0,1.50150345]
[1751128221427,0.1004577,107370.0,107360.0,1.50250345]
[1751128221890,0.1004577,107370.0,107360.0,1.50550345]
[1751128224697,0.1004577,107370.0,107360.0,1.60356345]
[1751128228059,0.1004577,107370.0,107360.0,0.50943549]
[1751128228288,0.1004577,107370.0,107360.0,1.60356345]
[1751128230014,0.1004577,107370.0,107360.0,1.69632353]
[1751128230226,0.1004577,107370.0,107360.0,1.72427753]
[1751128237611,0.1004577,107370.0,107360.0,2.42898685]
[1751128237818,0.08589991,107370.0,107360.0,2.42898685]
[1751128238410,0.08589991,107370.0,107360.0,2.59178285]
[1751128238612,0.08589991,107370.0,107360.0,2.58878285]
[1751128238821,0.08589991,107370.0,107360.0,2.59378285]
[1751128239023,0.08589991,107370.0,107360.0,2.59978285]
[1751128240486,0.08589991,107370.0,107360.0,2.59478285]
[1751128240696,0.08589991,107370.0,107360.0,2.59878285]
[1751128241137,0.08589991,107370.0,107360.0,2.23407353]
[1751128242496,0.08589991,107370.0,107360.0,2.59878285]
[1751128242919,0.08589991,107370.0,107360.0,2.64878285]
[1751128243358,0.07077239,107370.0,107360.0,2.64878285]
[1751128243561,0.1,107390.0,107380.0,0.2550356]
[1751128243777,0.1,107390.0,107380.0,1.63140364]
[1751128244196,0.1,107390.0,107380.0,1.65935264]
[1751128244618,0.1,107390.0,107380.0,1.75741264]
[1751128244830,0.1,107390.0,107380.0,1.76041264]
[1751128247763,0.1,107390.0,107380.0,1.66235264]
[1751128250106,0.1,107390.0,107380.0,1.66243264]
[1751128257695,0.1,107390.0,107380.0,1.76049264]
[1751128257899,0.1,107390.0,107380.0,1.66243264]
[1751128259176,0.1405,107390.0,107380.0,0.2461846]
[1751128259396,0.1405,107390.0,107380.0,0.97560324]
[1751128259608,0.1405,107390.0,107380.0,1.12648324]
[1751128260709,0.1405,107390.0,107380.0,1.49119256]
[1751128262479,0.1405,107390.0,107380.0,1.34031256]
[1751128262690,0.1405,107390.0,107380.0,1.12652324]
[1751128263895,0.1405,107390.0,107380.0,0.97560324]
[1751128264107,0.1405,107390.0,107380.0,1.12664324]
[1751128266079,0.1405,107390.0,107380.0,1.09873424]
[1751128266293,0.1405,107390.0,107380.0,0.94765424]
[1751128266511,0.1405,107390.0,107380.0,1.09873424]
[1751128266942,0.1405,107390.0,107380.0,0.94765424]
[1751128267151,0.1405,107390.0,107380.0,1.09873424]
[1751128269133,0.1405,107390.0,107380.0,1.09877424]
[1751128270411,0.1405,107390.0,107380.0,1.09773017]
[1751128270619,0.1405,107390.0,107380.0,0.94765424]
[1751128271037,0.1405,107390.0,107380.0,1.09873424]
[1751128273835,0.1405,107390.0,107380.0,1.09869424]
[1751128283755,0.1,107390.0,107380.0,1.09869424]
[1751128283986,0.1,107390.0,107380.0,1.11889424]
[1751128286957,0.1,107390.0,107380.0,1.57636364]
[1751128287173,0.1,107390.0,107380.0,1.59676364]
[1751128287381,0.1,107390.0,107380.0,1.62471164]
[1751128288220,0.1,107390.0,107380.0,1.72277164]
[1751128288422,0.1,107390.0,107380.0,1.62471164]
[1751128290409,0.08545,107390.0,107380.0,2.15161164]
[1751128290623,0.08545,107390.0,107380.0,2.51632096]
[1751128290824,0.08545,107390.0,107380.0,2.64663115]
[1751128291034,0.08545,107390.0,107380.0,3.37604979]
[1751128292857,0.08545,107390.0,107380.0,1.96392669]
[1751128294674,0.0008,107400.0,107390.0,0.70223157]
[1751128294879,0.0008,107400.0,107390.0,1.76194447]
[1751128295281,0.0008,107400.0,107390.0,1.76298854]
[1751128295902,0.0008,107400.0,107390.0,1.76698854]
[1751128296941,0.0008,107400.0,107390.0,1.76298854]
[1751128297143,0.0008,107400.0,107390.0,1.76498854]
[1751128297559,0.0008,107400.0,107390.0,1.76298854]
[1751128297779,0.0008,107400.0,107390.0,1.77228454]
[1751128298014,0.0008,107400.0,107390.0,1.83682539]
[1751128298239,0.0008,107400.0,107390.0,1.83982539]
[1751128299063,0.002,107410.0,107400.0,0.40111165]
[1751128299313,0.00213729,107410.0,107400.0,1.45976455]
[1751128299725,0.007296,107420.0,107410.0,0.74109171]
[1751128299935,0.007296,107420.0,107410.0,1.76190868]
[1751128300352,0.007296,107420.0,107410.0,1.78984568]
[1751128300615,0.007296,107420.0,107410.0,1.79930593]
[1751128302123,0.007296,107420.0,107410.0,1.80230593]
[1751128304257,0.00723506,107420.0,107410.0,1.80230593]
[1751128304689,0.0008,107440.0,107430.0,0.05]
[1751128304899,0.1065,107450.0,107440.0,1.38020473]
[1751128305109,0.10662813,107450.0,107440.0,1.62492888]
[1751128305314,0.10662813,107450.0,107440.0,1.69156088]
[1751128305989,0.10662813,107450.0,107440.0,1.30349447]
[1751128306341,0.14752813,107450.0,107440.0,1.25363447]
[1751128306747,0.14752813,107450.0,107440.0,0.24304798]
[1751128306954,0.14752813,107450.0,107440.0,0.60318239]
[1751128307157,0.14752813,107450.0,107440.0,0.75418239]
[1751128307575,0.14752813,107450.0,107440.0,0.75651198]
[1751128307782,0.14852813,107450.0,107440.0,0.75655198]
[1751128307993,0.14752813,107450.0,107440.0,0.75655198]
[1751128308198,0.14752813,107450.0,107440.0,0.60551198]
[1751128308432,0.14852813,107450.0,107440.0,0.75655198]
[1751128309016,0.16714013,107450.0,107440.0,0.2164015]
[1751128309221,0.47918778,107450.0,107440.0,0.19778751]
[1751128309357,0.46988165,107450.0,107440.0,0.18847999]
[1751128309571,0.46988165,107450.0,107440.0,0.34982751]
[1751128309771,0.85794806,107450.0,107440.0,0.34982751]
[1751128309973,0.85794806,107450.0,107440.0,0.15436959]
[1751128309974,0.8393352,107450.0,107440.0,0.15436959]
[1751128310406,0.83002855,107450.0,107440.0,0.15436959]
[1751128311212,0.83002855,107450.0,107440.0,0.00332959]
[1751128311416,0.86882855,107450.0,107440.0,0.00332959]
[1751128311639,0.86782855,107450.0,107440.0,0.00332959]
[1751128312149,0.87082855,107450.0,107440.0,0.00332959]
[1751128312360,0.86782855,107450.0,107440.0,0.00332959]
[1751128312553,0.87082855,107450.0,107440.0,0.00232959]
[1751128313156,0.0502076,107430.0,107420.0,0.36619559]
[1751128313366,0.14296768,107430.0,107420.0,0.36619559]
[1751128313544,0.15227554,107430.0,107420.0,0.36619559]
[1751128313754,0.16158358,107430.0,107420.0,0.36619559]
[1751128314134,0.18020008,107430.0,107420.0,0.35600296]
[1751128314343,0.1802,107430.0,107420.0,0.36531169]
[1751128314546,0.18319991,107430.0,107420.0,0.37462033]
[1751128314953,0.18320069,107430.0,107420.0,0.36531169]
[1751128315202,0.18320069,107430.0,107420.0,0.35600296]
[1751128315354,0.18020069,107430.0,107420.0,0.35600296]
[1751128315558,0.17089283,107430.0,107420.0,0.35600304]
[1751128315930,0.35075252,107430.0,107420.0,0.2048033]
[1751128316552,0.35075252,107430.0,107420.0,0.2141122]
[1751128316753,0.16458479,107430.0,107420.0,0.2141122]
[1751128316956,0.20338479,107430.0,107420.0,0.21515627]
[1751128317157,0.20338479,107430.0,107420.0,0.21515636]
[1751128317292,0.20338479,107430.0,107420.0,0.22342119]
[1751128318134,0.19407606,107430.0,107420.0,0.23272983]
[1751128318951,0.19407546,107430.0,107420.0,0.23272983]
[1751128319798,0.20338341,107430.0,107420.0,0.23272992]
[1751128320252,0.20338341,107430.0,107420.0,0.2327294]
[1751128320600,0.22723238,107430.0,107420.0,0.21411195]
[1751128320810,0.22723238,107430.0,107420.0,0.22342085]
[1751128321016,0.2272323,107430.0,107420.0,0.22342085]
[1751128321220,0.2272323,107430.0,107420.0,0.23272958]
[1751128321466,0.20861631,107430.0,107420.0,0.23272914]
[1751128322297,0.21792417,107430.0,107420.0,0.2234205]
[1751128322611,0.21792417,107430.0,107420.0,0.23272914]
[1751128323251,0.19930853,107430.0,107420.0,0.23272914]
[1751128323511,0.13666008,107430.0,107420.0,0.62183962]
[1751128326862,0.003,107430.0,107420.0,0.62183962]
[1751128331745,0.003,107430.0,107420.0,0.64123962]
[1751128333422,0.003,107430.0,107420.0,0.62183962]
[1751128335533,0.003,107430.0,107420.0,0.66273962]